[Event "Chinese League Div-A Rapid 2022"]
[Site "Fuling,Chongqing"]
[Date "2022.09.14"]
[Round "7.16"]
[White "Chen, Yuan"]
[Black "Bai, Jinshi"]
[Result "0-1"]
[ECO "C68"]
[WhiteElo "2138"]
[BlackElo "2586"]
[Annotator "TA"]
[PlyCount "106"]
[EventDate "2022.09.07"]
[EventType "team-tourn"]
[EventCountry "CHN"]
[SourceTitle "playchess.com"]
[Source "ChessBase"]
[SourceQuality "1"]
[TimeControl "1500+10"]

{[%evp 10,106,0,-16,-10,-12,-7,-26,-15,-26,-13,-31,-20,-52,-56,-62,-51,-72,-75,-64,-35,-33,-40,-50,-4,0,-4,-9,30,-71,-62,-58,-52,-61,-55,-62,-63,-156,-156,-157,-166,-159,-154,-164,-150,-152,-152,-150,-151,-155,-161,-193,-149,-160,-160,-275,-288,-289,-254,-216,-319,-284,-288,-264,-252,-472,-472,-1189,-1176,-29962,-29958,-29964,-29966,-29974,-29976,-29976,-29977,-29988,-29973,-29973,-29974,-29977,-29975,-29975,-29976,-29976,-29977,-29977,-29978,-29978,-29979,-29979,-29980,-29980,-29981,-29984,-29985,-29985,-29985]} 1. e4 {[%emt 0:00:03]} e5 {[%emt 0:00:04]} 2. Nf3 {[%emt 0:00:01]} Nc6 {[%emt 0:00:02]} 3. Bb5 {[%emt 0:00:09]} a6 {[%emt 0:00:03]} 4. Bxc6 {[%emt 0:01:27]} dxc6 {[%emt 0:00:02]} 5. d3 {[%emt 0:00:01]} Bd6 {[%emt 0:01:36]} 6. Be3 {[%emt 0:00:13]} c5 {[%emt 0:01:23] C68: Ruy Lopez: Exchange Variation, sidelines.} 7. Nbd2 {[%emt 0:00:29]} Ne7 {[%emt 0:00:21]} 8. Qe2 {[%emt 0:01:02]} Nc6 {[%emt 0:00:12] Black has an edge.} 9. c3 {[%emt 0:00:59] [#]} f6 $146 {[%emt 0:00:34]} ({Predecessor:} 9... O-O 10. a3 a5 11. h3 a4 12. O-O Qe7 13. Rfe1 h6 14. Nf1 Be6 15. Ng3 Rfd8 {½-½ (22) Velten,P (2455)-Bailet,P (2534) Anogia 2017}) 10. Nh4 {[%emt 0:02:11]} Be6 {[%emt 0:01:17]} 11. O-O {[%emt 0:03:16]} Qd7 {[%emt 0:00:34]} 12. Nb3 {[%emt 0:01:37]} b6 {[%emt 0:00:21]} 13. d4 {[%emt 0:03:03]} cxd4 {[%emt 0:05:04]} 14. cxd4 {[%emt 0:00:02] And now d5 would win.} exd4 {[%emt 0:00:18]} (14... Bxb3 {seems wilder.} 15. dxe5 Nxe5 16. axb3 Qg4) 15. Nxd4 {[%emt 0:00:14]} Nxd4 {[%emt 0:00:15]} 16. Bxd4 {[%emt 0:00:02] [#]} Bxh2+ $1 {[%emt 0:00:22]} 17. Kxh2 $11 {[%emt 0:00:01]} Qxd4 {[%emt 0:00:01]} 18. Nf5 $1 {[%emt 0:01:55]} Qd7 {[%emt 0:02:10]} 19. Rac1 {[%emt 0:04:38]} (19. Rfd1 $11 Qf7 20. Rd6) 19... O-O $17 {[%emt 0:01:35]} 20. Rfd1 {[%emt 0:00:02]} Qf7 {[%emt 0:00:10]} 21. Qg4 {[%emt 0:00:57] Nh6+ is the strong threat.} Bxf5 {[%emt 0:01:32]} 22. Qxf5 {[%emt 0:00:14] aiming for Rd7.} Rad8 {[%emt 0:00:25] Prevents Rd7.} 23. e5 {[%emt 0:01:29]} (23. Rxd8 $15 Rxd8 24. a4) 23... Rxd1 {[%emt 0:01:11]} ({Stronger than} 23... Qxa2 24. Rxd8 Rxd8 25. Rxc7 $11) 24. Rxd1 {[%emt 0:00:14]} fxe5 {[%emt 0:00:31]} 25. Qxe5 {[%emt 0:00:05][%mdl 4096] Endgame KQR-KQR} Re8 $1 {[%emt 0:02:54]} 26. Qd5 {[%emt 0:01:05]} Qxd5 {[%emt 0:00:22]} 27. Rxd5 $19 {[%emt 0:00:01] KR-KR} Re2 {[%emt 0:00:02][%csl LRb2,LRf2]} 28. Rd8+ {[%emt 0:00:10]} Kf7 {[%emt 0:00:02]} 29. Rd7+ {[%emt 0:00:01]} Kf8 {[%emt 0:00:44]} 30. Rxc7 {[%emt 0:00:40]} Rxb2 {[%emt 0:01:12]} 31. Rc8+ {[%emt 0:02:40]} Ke7 {[%emt 0:00:02]} 32. Rc7+ {[%emt 0:00:10]} (32. Kg3 $17) 32... Kd6 $1 {[%emt 0:01:14]} 33. Rxg7 {[%emt 0:00:03]} Rxf2 {[%emt 0:00:10]} 34. a3 {[%emt 0:00:30]} Ra2 {[%emt 0:00:22]} 35. Rxh7 {[%emt 0:00:30]} Rxa3 {[%emt 0:00:02]} 36. g4 {[%emt 0:00:02]} b5 {[%emt 0:01:10][%cal Bb6b5,Bb5b4,Bb4b3,Bb3b2][%mdl 32]} 37. g5 $2 {[%emt 0:00:14] [#]} (37. Ra7 Ke6 38. Kg2) 37... Ke6 $1 {[%emt 0:00:31] White must now prevent ...Kf5.} 38. Rh8 {[%emt 0:00:47]} (38. Kg1 $142 Kf5 39. Kf2) 38... Kf5 {[%emt 0:00:26]} 39. Rg8 {[%emt 0:00:03]} b4 {[%emt 0:00:40] Black mates.} 40. g6 {[%emt 0:00:05]} b3 {[%emt 0:00:34]} 41. Kg2 {[%emt 0:00:13]} Ra2+ {[%emt 0:00:20]} 42. Kf3 {[%emt 0:00:07]} b2 {[%emt 0:00:02]} 43. g7 {[%emt 0:00:22]} Kg6 {[%emt 0:00:31]} 44. Rb8 {[%emt 0:00:11]} Kxg7 {[%emt 0:00:01]} 45. Kf4 {[%emt 0:00:09]} a5 {[%emt 0:00:23][%cal Ba6a5,Ba5a4,Ba4a3][%mdl 32]} 46. Kf5 {[%emt 0:00:07]} a4 {[%emt 0:00:35]} 47. Rb7+ {[%emt 0:00:04]} Kf8 {[%emt 0:00:23]} 48. Kf6 {[%emt 0:00:18]} Ke8 {[%emt 0:00:01]} 49. Ke6 {[%emt 0:00:10]} Kd8 {[%emt 0:00:03]} 50. Kd6 {[%emt 0:00:03]} Kc8 {[%emt 0:00:02]} 51. Kc6 {[%emt 0:00:12]} a3 {[%emt 0:00:14]} 52. Rg7 {[%emt 0:00:14]} Kd8 {[%emt 0:00:08]} 53. Kd6 {[%emt 0:00:14] [#]} Ke8 $1 {[%emt 0:00:01] Weighted Error Value: White=0.42/Black=0.05 (flawless)} 0-1

[Event "Chinese League Div-A Rapid 2022"]
[Site "Fuling,Chongqing"]
[Date "2022.09.14"]
[Round "7.17"]
[White "Xu, Minghui"]
[Black "Xu, Zhihang"]
[Result "1-0"]
[ECO "E21"]
[WhiteElo "2408"]
[BlackElo "2489"]
[Annotator "RC"]
[PlyCount "75"]
[EventDate "2022.09.07"]
[EventType "team-tourn"]
[EventCountry "CHN"]
[SourceTitle "playchess.com"]
[Source "ChessBase"]
[SourceQuality "1"]
[TimeControl "1500+10"]

1. d4 {[%emt 0:00:03]} Nf6 {[%emt 0:00:05]} 2. c4 {[%emt 0:00:03]} e6 {[%emt 0:00:03]} 3. Nc3 {[%emt 0:00:11]} Bb4 {[%emt 0:00:03]} 4. e3 {[%emt 0:00:08]} O-O {[%emt 0:00:08]} 5. Bd2 {[%emt 0:00:04]} b6 {[%emt 0:00:33]} 6. Nf3 {[%emt 0:00:05]} Bb7 {[%emt 0:00:02]} 7. Bd3 {[%emt 0:00:02]} d6 {[%emt 0:00:24]} 8. O-O {[%emt 0:00:05]} Nbd7 {[%emt 0:00:04]} 9. a3 {[%emt 0:00:24]} Bxc3 {[%emt 0:00:02]} 10. Bxc3 {[%emt 0:00:02]} Ne4 {[%emt 0:00:44]} 11. Be1 {[%emt 0:02:16]} f5 {[%emt 0:00:40]} 12. Nd2 {[%emt 0:00:47]} Qg5 {[%emt 0:01:29]} 13. f4 {[%emt 0:00:50]} Qg6 {[%emt 0:00:18]} 14. Nxe4 {[%emt 0:00:19]} fxe4 {[%emt 0:00:28]} 15. Be2 {[%emt 0:00:31]} Nf6 {[%emt 0:01:49]} 16. Kh1 {[%emt 0:02:01]} e5 {[%emt 0:02:30]} 17. dxe5 {[%emt 0:01:16]} dxe5 {[%emt 0:00:04]} 18. Bc3 {[%emt 0:00:06]} Rad8 {[%emt 0:02:14]} 19. Qe1 {[%emt 0:02:39]} Nd7 {[%emt 0:03:51]} 20. Qh4 {[%emt 0:01:18]} Nc5 {[%emt 0:02:04]} 21. Bxe5 {[%emt 0:03:33]} Rd2 {[%emt 0:01:19]} 22. Qe1 {[%emt 0:02:38]} Rfd8 {[%emt 0:02:31]} 23. Rd1 {[%emt 0:00:26]} Rxd1 {[%emt 0:00:31]} 24. Bxd1 {[%emt 0:00:02]} Nd3 {[%emt 0:00:09]} 25. Qh4 {[%emt 0:00:14]} Rf8 {[%emt 0:00:49]} 26. Bc3 {[%emt 0:00:29]} Qf7 {[%emt 0:00:54]} 27. Bh5 {[%emt 0:01:27]} Qd7 {[%emt 0:02:08]} 28. Qg3 {[%emt 0:01:57]} Ba6 {[%emt 0:01:00]} 29. Bg4 {[%emt 0:00:48]} Qe7 {[%emt 0:00:02]} 30. Be6+ {[%emt 0:00:01]} Kh8 {[%emt 0:00:01]} 31. f5 {[%emt 0:00:23]} Nc5 {[%emt 0:00:08]} 32. Bd5 {[%emt 0:01:00]} Nd7 {[%emt 0:01:53]} 33. Qxc7 {[%emt 0:00:03]} Bc8 {[%emt 0:00:40]} 34. Bb4 {[%emt 0:00:32]} Qd8 {[%emt 0:00:01]} 35. Qg3 {[%emt 0:00:40]} Re8 {[%emt 0:00:18]} 36. Bf7 {[%emt 0:00:15]} Re5 {[%emt 0:00:04]} 37. Bc3 {[%emt 0:00:09]} Qf6 {[%emt 0:00:06]} 38. Be6 {[%emt 0:00:36]} 1-0

[Event "Chinese League Div-A Rapid 2022"]
[Site "Fuling,Chongqing"]
[Date "2022.09.14"]
[Round "7.18"]
[White "Lu, Shanglei"]
[Black "Ma, Qun"]
[Result "1/2-1/2"]
[ECO "C54"]
[WhiteElo "2616"]
[BlackElo "2666"]
[Annotator "TA"]
[PlyCount "98"]
[EventDate "2022.09.07"]
[EventType "team-tourn"]
[EventCountry "CHN"]
[SourceTitle "playchess.com"]
[Source "ChessBase"]
[SourceQuality "1"]
[TimeControl "1500+10"]

{[%evp 15,98,0,0,0,0,0,0,0,23,0,0,0,0,0,1,0,0,0,0,0,0,0,4,0,25,25,25,0,0,0,0,0,0,0,0,0,0,0,0,0,0,0,0,0,0,0,0,0,0,0,0,0,0,-8,-8,-10,0,-37,-39,-51,-51,-51,-51,-194,-194,-194,-55,-55,-55,-55,-55,-55,-55,-55,-55,-55,-55,-55,0,-55,0,-55,0,-55,0]} 1. e4 {[%emt 0:00:03]} e5 {[%emt 0:00:02]} 2. Nf3 {[%emt 0:00:03]} Nc6 {[%emt 0:00:03]} 3. Bc4 {[%emt 0:00:02]} Bc5 {[%emt 0:00:03]} 4. c3 {[%emt 0:00:03]} Nf6 {[%emt 0:00:03]} 5. d4 {[%emt 0:00:02]} exd4 {[%emt 0:00:07]} 6. e5 {[%emt 0:00:01]} d5 {[%emt 0:00:09]} 7. Bb5 {[%emt 0:00:02]} Ne4 {[%emt 0:00:05]} 8. cxd4 {[%emt 0:00:03]} Bb6 {[%emt 0:00:12]} 9. Nc3 {[%emt 0:00:02] C54: Giuoco Piano: 4 c3 Nf6, main lines with 5 d4 and 5 d3.} Bg4 {[%emt 0:00:39]} 10. Be3 {[%emt 0:00:03]} O-O {[%emt 0:00:11]} 11. h3 {[%emt 0:00:02] The position is equal.} Bh5 {[%emt 0:00:03]} 12. Qc2 {[%emt 0:00:02]} Nxc3 $1 {[%emt 0:00:11][%mdl 4] is now more promising than 12...Bg6.} 13. bxc3 {[%emt 0:00:02]} f6 {[%emt 0:00:04]} 14. exf6 {[%emt 0:00:04]} Qxf6 {[%emt 0:00:03]} 15. Be2 {[%emt 0:00:03]} ({Much worse is} 15. Ng5 Bg6 16. Qb3 Kh8 $15) 15... Na5 {[%emt 0:00:07]} 16. O-O {[%emt 0:04:25]} Bxf3 {[%emt 0:00:06]} 17. Bxf3 {[%emt 0:00:03]} c6 {[%emt 0:00:02]} 18. Rae1 {[%emt 0:03:05]} Nc4 {[%emt 0:00:13]} 19. Bc1 {[%emt 0:00:21]} Qg6 {[%emt 0:00:03]} 20. Qxg6 {[%emt 0:03:13]} hxg6 {[%emt 0:00:03] [#]} 21. Be2 $146 {[%emt 0:01:05]} ({Predecessor:} 21. Re7 Rf7 22. Re2 Ba5 23. Rc2 Re8 24. Be2 Rfe7 25. Bd3 Kf7 26. g3 b5 27. h4 {½-½ (48) So,W (2772)-Carlsen,M (2847) chess24.com INT 2021}) 21... Ba5 {[%emt 0:04:23]} 22. Bxc4 {[%emt 0:00:14]} dxc4 {[%emt 0:00:03]} 23. Re3 {[%emt 0:00:17]} Rae8 {[%emt 0:01:30]} 24. Bd2 {[%emt 0:01:39]} Rxe3 {[%emt 0:00:34]} 25. fxe3 {[%emt 0:00:02]} Rxf1+ {[%emt 0:00:06]} 26. Kxf1 $11 {[%emt 0:00:03][%mdl 4096] Endgame KB-KB} Kf7 {[%emt 0:00:06]} 27. Ke2 {[%emt 0:02:31]} b5 {[%emt 0:00:08]} 28. e4 {[%emt 0:00:30]} Ke6 {[%emt 0:00:27]} 29. h4 {[%emt 0:01:45]} Bc7 {[%emt 0:04:55]} 30. g4 {[%emt 0:00:48]} a5 {[%emt 0:00:04]} 31. h5 {[%emt 0:03:18]} gxh5 {[%emt 0:00:21]} 32. gxh5 {[%emt 0:00:01]} Bd6 {[%emt 0:00:11]} 33. Kd1 {[%emt 0:00:02]} c5 {[%emt 0:05:00]} 34. Be3 {[%emt 0:02:42]} cxd4 {[%emt 0:00:29]} 35. Bxd4 {[%emt 0:00:02]} Be5 {[%emt 0:00:19]} 36. a3 {[%emt 0:00:10]} Bf6 {[%emt 0:07:22]} 37. Kd2 {[%emt 0:00:02]} Bg5+ $1 {[%emt 0:01:09]} 38. Kc2 {[%emt 0:00:08]} Kf7 {[%emt 0:00:30] And now ...a4 would win.} 39. Bb6 {[%emt 0:01:49] [#]} ({White must play} 39. a4 $1 $15 bxa4 40. Kb2) 39... a4 $1 $19 {[%emt 0:00:03]} 40. Bc5 {[%emt 0:00:19]} g6 {[%emt 0:00:42]} ({Black should try} 40... Bh6 $19 {White must now prevent ...Kf6.} 41. Bd4 Bf4) 41. hxg6+ $15 {[%emt 0:00:02]} Kxg6 {[%emt 0:00:02]} 42. Kd1 {[%emt 0:00:13]} Kf6 {[%emt 0:00:18]} 43. Ke2 {[%emt 0:00:30]} Ke5 {[%emt 0:00:16]} 44. Kf3 {[%emt 0:00:02]} Bc1 {[%emt 0:00:06]} 45. Bb4 {[%emt 0:00:06]} Bd2 {[%emt 0:00:16]} 46. Ke2 {[%emt 0:00:14]} Bc1 {[%emt 0:00:04]} 47. Kf3 {[%emt 0:00:01]} Bd2 {[%emt 0:00:37]} 48. Ke2 $1 {[%emt 0:00:03]} Bc1 {[%emt 0:00:12]} 49. Kf3 {[%emt 0:00:03]} Bd2 {[%emt 0:00:03] Weighted Error Value: White=0.07 (flawless) /Black=0.12 (very precise)} (49... Ke6 $15) 1/2-1/2

[Event "Chinese League Div-A Rapid 2022"]
[Site "Fuling,Chongqing"]
[Date "2022.09.14"]
[Round "7.19"]
[White "Hou, Yifan"]
[Black "Bai, Xue"]
[Result "1-0"]
[ECO "C92"]
[WhiteElo "2650"]
[BlackElo "2123"]
[Annotator "TA"]
[PlyCount "93"]
[EventDate "2022.09.07"]
[EventType "team-tourn"]
[EventCountry "CHN"]
[SourceTitle "playchess.com"]
[Source "ChessBase"]
[SourceQuality "1"]
[TimeControl "1500+10"]

{[%evp 24,93,2,-4,11,-8,6,-14,42,18,2,6,7,0,0,16,43,31,39,25,152,144,141,145,130,142,143,144,155,148,133,137,154,143,150,143,151,141,138,102,148,131,140,135,140,135,152,116,111,29,29,43,61,71,411,399,385,387,332,339,399,400,372,366,948,937,1133,1092,1066,942,963,900]} 1. e4 {[%emt 0:00:01]} e5 {[%emt 0:00:01]} 2. Nf3 {[%emt 0:00:01]} Nc6 {[%emt 0:00:02]} 3. Bb5 {[%emt 0:00:01]} a6 {[%emt 0:00:03]} 4. Ba4 {[%emt 0:00:01]} Nf6 {[%emt 0:00:03]} 5. O-O {[%emt 0:00:02]} Be7 {[%emt 0:00:02]} 6. Re1 {[%emt 0:00:01]} b5 {[%emt 0:00:02]} 7. Bb3 {[%emt 0:00:01]} d6 {[%emt 0:00:03]} 8. c3 {[%emt 0:00:00]} O-O {[%emt 0:00:05]} 9. h3 {[%emt 0:00:01]} Bb7 {[%emt 0:01:40]} 10. d4 {[%emt 0:00:02]} Re8 {[%emt 0:00:02]} 11. Nbd2 {[%emt 0:00:01]} Bf8 {[%emt 0:00:06]} 12. Bc2 {[%emt 0:01:29]} g6 {[%emt 0:01:32]} 13. b3 {[%emt 0:05:03]} Bg7 {[%emt 0:00:49] C92: Closed Ruy Lopez: 9...Be6, Karpov and Flohr-Zaitsev Variations.} 14. Bb2 $5 {[%emt 0:00:24][%mdl 4] Exploring less charted territory.} Nh5 {[%emt 0:01:33] [#]} 15. Nf1 $146 {[%emt 0:01:47]} ({Predecessor:} 15. Bd3 exd4 16. cxd4 Nb4 17. Bb1 c5 18. Nf1 d5 19. e5 c4 20. Qd2 Bf8 21. g4 {1-0 (38) Efler,L (2237)-Posta,P (2190) Czech Republic 2002}) 15... Qe7 {[%emt 0:03:28]} (15... exd4 $11 16. cxd4 Nb4) 16. a3 {[%emt 0:04:25]} Nb8 {[%emt 0:01:04][%cal Bc6b8,Bb8d7,Bd7c5][%mdl 32]} 17. Ne3 {[%emt 0:02:11]} Nd7 {[%emt 0:01:12]} 18. d5 {[%emt 0:01:20]} c6 {[%emt 0:00:36]} 19. c4 {[%emt 0:00:04]} Nc5 {[%emt 0:03:09]} 20. b4 {[%emt 0:00:08]} Nd7 {[%emt 0:00:04]} 21. Bb3 {[%emt 0:01:11]} bxc4 {[%emt 0:02:29]} (21... Nf4 $11) 22. dxc6 $16 {[%emt 0:00:51]} ({Not} 22. Nxc4 cxd5 23. exd5 Nhf6 $11) ({But not} 22. Bxc4 $6 Nb6 $11) 22... Bxc6 {[%emt 0:01:24]} 23. Nxc4 {[%emt 0:00:10]} Bf8 {[%emt 0:01:43]} 24. Na5 {[%emt 0:00:30]} Rac8 {[%emt 0:00:03]} 25. Nxc6 {[%emt 0:00:59]} Rxc6 {[%emt 0:00:13]} 26. Qd5 {[%emt 0:00:24]} Rc7 {[%emt 0:00:23]} 27. Qa5 {[%emt 0:00:34]} Nb8 {[%emt 0:01:13]} 28. Rac1 {[%emt 0:00:44]} Rec8 {[%emt 0:00:28]} 29. Rxc7 {[%emt 0:00:48] 0x0.001f27b27c44dp-1022s more active pieces.} Qxc7 {[%emt 0:00:36]} 30. Qxc7 {[%emt 0:01:06]} Rxc7 {[%emt 0:00:02]} 31. Ng5 {[%emt 0:00:02]} Bh6 {[%emt 0:00:58]} (31... Nf4 $142) 32. Nxf7 {[%emt 0:00:14]} Rxf7 {[%emt 0:00:09]} 33. Rd1 {[%emt 0:00:01]} Bf8 {[%emt 0:00:48]} 34. Rc1 {[%emt 0:00:02]} (34. Bxf7+ $6 Kxf7 35. Rc1 Nf6 $14) 34... Nf6 {[%emt 0:00:33]} 35. Rc8 {[%emt 0:01:48]} ({Don't do} 35. Bxf7+ $6 Kxf7 36. f3 Ke6 $14) 35... Nbd7 {[%emt 0:00:25] [#]} 36. Bxf7+ {[%emt 0:00:16]} ({Better is} 36. f3 $1 $16) 36... Kxf7 $11 {[%emt 0:00:01]} 37. f3 {[%emt 0:00:01]} d5 $1 {[%emt 0:01:05]} 38. exd5 {[%emt 0:00:10]} a5 $2 {[%emt 0:00:59][%mdl 8192] This costs Black the game.} (38... Nxd5 $16 39. Bc1 Bd6) 39. bxa5 $18 {[%emt 0:00:34]} Nxd5 {[%emt 0:00:20]} 40. a6 {[%emt 0:00:13]} Bc5+ {[%emt 0:00:09]} 41. Kf1 {[%emt 0:00:11]} Bb6 {[%emt 0:00:14]} 42. a4 {[%emt 0:00:09][%cal Ba3a4,Ba4a5][%mdl 32]} Ne3+ {[%emt 0:00:41]} 43. Ke2 {[%emt 0:00:29][%cal Oa4a5] [#] a5! is the strong threat.} Nxg2 $2 {[%emt 0:00:46]} (43... Nd5 44. a5 Bg1) 44. a5 {[%emt 0:00:24] White is clearly winning.} Nf4+ {[%emt 0:00:02]} 45. Kf1 {[%emt 0:00:00]} Be3 {[%emt 0:00:56]} 46. Bc1 {[%emt 0:00:10]} Bd4 {[%emt 0:00:14]} 47. Bxf4 {[%emt 0:00:45] Weighted Error Value: White=0.10 (very precise) /Black=0.39} 1-0

[Event "Chinese League Div-A Rapid 2022"]
[Site "Fuling,Chongqing"]
[Date "2022.09.14"]
[Round "7.20"]
[White "Zhai, Mo"]
[Black "Qiu, Mengjie"]
[Result "1-0"]
[ECO "E35"]
[WhiteElo "2374"]
[BlackElo "2149"]
[Annotator "RC"]
[PlyCount "90"]
[EventDate "2022.09.07"]
[EventType "team-tourn"]
[EventCountry "CHN"]
[SourceTitle "playchess.com"]
[Source "ChessBase"]
[SourceQuality "1"]
[TimeControl "1500+10"]

1. d4 {[%emt 0:00:02]} Nf6 {[%emt 0:00:01]} 2. c4 {[%emt 0:00:07]} e6 {[%emt 0:00:03]} 3. Nc3 {[%emt 0:00:05]} Bb4 {[%emt 0:00:03]} 4. Qc2 {[%emt 0:00:06]} d5 {[%emt 0:00:07]} 5. cxd5 {[%emt 0:00:09]} exd5 {[%emt 0:00:04]} 6. Bg5 {[%emt 0:00:07]} h6 {[%emt 0:00:12]} 7. Bh4 {[%emt 0:00:10]} g5 {[%emt 0:01:46]} 8. Bg3 {[%emt 0:00:08]} Ne4 {[%emt 0:00:05]} 9. e3 {[%emt 0:00:36]} h5 {[%emt 0:01:37]} 10. f3 {[%emt 0:02:26]} Nxg3 {[%emt 0:00:43]} 11. hxg3 {[%emt 0:00:02]} Qe7 {[%emt 0:00:43]} 12. Kf2 {[%emt 0:00:33]} c6 {[%emt 0:00:33]} 13. Nxd5 {[%emt 0:00:39]} Qd6 {[%emt 0:00:19]} 14. Nxb4 {[%emt 0:00:29]} Qxb4 {[%emt 0:00:02]} 15. Bc4 {[%emt 0:00:31]} Nd7 {[%emt 0:00:58]} 16. Ne2 {[%emt 0:01:42]} Nb6 {[%emt 0:00:14]} 17. Bb3 {[%emt 0:00:34]} Qe7 {[%emt 0:03:17]} 18. Nc3 {[%emt 0:00:47]} Be6 {[%emt 0:00:41]} 19. Bxe6 {[%emt 0:00:23]} Qxe6 {[%emt 0:00:07]} 20. Qe4 {[%emt 0:00:12]} Ke7 {[%emt 0:02:19]} 21. Qxe6+ {[%emt 0:00:25]} fxe6 {[%emt 0:00:23]} 22. Ne4 {[%emt 0:00:06]} Rag8 {[%emt 0:02:33]} 23. Rh2 {[%emt 0:00:25]} h4 {[%emt 0:01:08]} 24. gxh4 {[%emt 0:00:39]} Rxh4 {[%emt 0:01:13]} 25. Rxh4 {[%emt 0:00:23]} gxh4 {[%emt 0:00:02]} 26. Rh1 {[%emt 0:00:16]} Rh8 {[%emt 0:00:42]} 27. b3 {[%emt 0:00:54]} Nd5 {[%emt 0:00:21]} 28. f4 {[%emt 0:00:48]} Nb4 {[%emt 0:02:17]} 29. a3 {[%emt 0:00:34]} Nc2 {[%emt 0:00:36]} 30. a4 {[%emt 0:00:14]} b5 {[%emt 0:00:17]} 31. axb5 {[%emt 0:05:16]} cxb5 {[%emt 0:00:01]} 32. Rc1 {[%emt 0:00:17]} Rc8 {[%emt 0:00:34]} 33. Nc5 {[%emt 0:00:17]} Na3 {[%emt 0:01:03]} 34. Rh1 {[%emt 0:00:34]} Rh8 {[%emt 0:00:21]} 35. Ra1 {[%emt 0:00:14]} b4 {[%emt 0:00:50]} 36. Na6 {[%emt 0:00:09]} Kd6 {[%emt 0:02:07]} 37. Nxb4 {[%emt 0:00:10]} Nb5 {[%emt 0:00:05]} 38. Ra6+ {[%emt 0:00:21]} Kd7 {[%emt 0:00:18]} 39. Nd3 {[%emt 0:00:13]} Ke7 {[%emt 0:02:01]} 40. Nc5 {[%emt 0:00:16]} h3 {[%emt 0:00:39]} 41. gxh3 {[%emt 0:00:11]} Rxh3 {[%emt 0:00:02]} 42. Rxe6+ {[%emt 0:00:07]} Kf7 {[%emt 0:00:03]} 43. Ra6 {[%emt 0:00:21]} Rh2+ {[%emt 0:00:13]} 44. Kg3 {[%emt 0:00:10]} Re2 {[%emt 0:00:07]} 45. Kf3 {[%emt 0:00:03]} Ke8 {[%emt 0:00:29]} 1-0

[Event "Chinese League Div-A Rapid 2022"]
[Site "Fuling,Chongqing"]
[Date "2022.09.14"]
[Round "7.21"]
[White "Zhao, Yuanhe"]
[Black "Wan, Yunguo"]
[Result "0-1"]
[ECO "A13"]
[WhiteElo "2440"]
[BlackElo "2508"]
[Annotator "RC"]
[PlyCount "62"]
[EventDate "2022.09.07"]
[EventType "team-tourn"]
[EventCountry "CHN"]
[SourceTitle "playchess.com"]
[Source "ChessBase"]
[SourceQuality "1"]
[TimeControl "1500+10"]

1. Nf3 {[%emt 0:00:02]} Nf6 {[%emt 0:00:04]} 2. c4 {[%emt 0:00:02]} e6 {[%emt 0:00:20]} 3. Nc3 {[%emt 0:00:05]} d5 {[%emt 0:00:04]} 4. e3 {[%emt 0:00:01]} Be7 {[%emt 0:00:07]} 5. b3 {[%emt 0:00:05]} O-O {[%emt 0:00:07]} 6. Bb2 {[%emt 0:00:02]} c5 {[%emt 0:00:15]} 7. cxd5 {[%emt 0:00:29]} Nxd5 {[%emt 0:00:12]} 8. Qc2 {[%emt 0:00:06]} Nc6 {[%emt 0:00:32]} 9. a3 {[%emt 0:00:02]} Bf6 {[%emt 0:02:21]} 10. g4 {[%emt 0:00:09]} Ne5 {[%emt 0:02:58]} 11. Nxe5 {[%emt 0:00:48]} Bxe5 {[%emt 0:00:03]} 12. h4 {[%emt 0:02:45]} Nxc3 {[%emt 0:04:10]} 13. dxc3 {[%emt 0:00:05]} f5 {[%emt 0:02:37]} 14. f4 {[%emt 0:03:03]} Bc7 {[%emt 0:00:05]} 15. Bd3 {[%emt 0:01:25]} c4 {[%emt 0:02:12]} 16. Bxc4 {[%emt 0:00:42]} fxg4 {[%emt 0:00:28]} 17. Bd3 {[%emt 0:00:24]} h6 {[%emt 0:00:19]} 18. O-O-O {[%emt 0:00:24]} Qe7 {[%emt 0:00:03]} 19. h5 {[%emt 0:00:22]} e5 {[%emt 0:00:36]} 20. Kb1 {[%emt 0:03:50]} Bd7 {[%emt 0:03:25]} 21. f5 {[%emt 0:00:39]} e4 {[%emt 0:04:25]} 22. Bc4+ {[%emt 0:00:53]} Kh8 {[%emt 0:00:08]} 23. Rxd7 {[%emt 0:01:21]} Qxd7 {[%emt 0:00:03]} 24. Be6 {[%emt 0:00:02]} Qd3 {[%emt 0:00:32]} 25. Qxd3 {[%emt 0:00:02]} exd3 {[%emt 0:00:01]} 26. c4 {[%emt 0:00:08]} Rae8 {[%emt 0:02:38]} 27. Kc1 {[%emt 0:00:27]} g3 {[%emt 0:00:08]} 28. Rh4 {[%emt 0:02:21]} Rxe6 {[%emt 0:00:23]} 29. fxe6 {[%emt 0:00:03]} Kg8 {[%emt 0:00:11]} 30. Rg4 {[%emt 0:07:38]} Rf1+ {[%emt 0:00:02]} 31. Kd2 {[%emt 0:00:01]} Rf2+ {[%emt 0:00:01]} 0-1